[Event "*** SCC Grand Prix: Titled Tuesday Blitz"]
[Site "Chess.com"]
[Date "2020.07.21"]
[Round "3"]
[White "Indianlad"]
[Black "MihailNik"]
[Result "1-0"]
[WhiteElo "2975"]
[BlackElo "2670"]
[TimeControl "180+1"]
[EndTime "10:29:02 PDT"]
[Termination "Indianlad won by resignation"]

1. e4 {[%clk 0:03:00.9]} 1... c6 {[%clk 0:02:58.5]} 2. Nc3 {[%clk 0:02:58.4]}
2... d5 {[%clk 0:02:58.9]} 3. Nf3 {[%clk 0:02:59.1]} 3... Bg4 {[%clk 0:02:57.8]}
4. h3 {[%clk 0:02:59.2]} 4... Bxf3 {[%clk 0:02:58.4]} 5. Qxf3 {[%clk 0:03:00.1]}
5... e6 {[%clk 0:02:59]} 6. Be2 {[%clk 0:03:00.7]} 6... Nd7 {[%clk 0:02:58.3]}
7. d4 {[%clk 0:03:00.4]} 7... g6 {[%clk 0:02:54.2]} 8. Be3 {[%clk 0:02:59.7]}
8... Bg7 {[%clk 0:02:54.1]} 9. O-O-O {[%clk 0:02:56.4]} 9... Ne7 {[%clk
0:02:53.4]} 10. h4 {[%clk 0:02:55.1]} 10... h6 {[%clk 0:02:46.7]} 11. g4 {[%clk
0:02:52.4]} 11... b5 {[%clk 0:02:43.2]} 12. exd5 {[%clk 0:02:52.1]} 12... cxd5
{[%clk 0:02:41.1]} 13. Nxb5 {[%clk 0:02:48.1]} 13... Qb6 {[%clk 0:02:33.2]} 14.
Bf4 {[%clk 0:02:24.5]} 14... O-O {[%clk 0:02:32.1]} 15. Qe3 {[%clk 0:02:22.2]}
15... a6 {[%clk 0:02:28.8]} 16. Nc3 {[%clk 0:02:22]} 16... Kh7 {[%clk
0:02:20.8]} 17. Bd3 {[%clk 0:02:15.5]} 17... Bxd4 {[%clk 0:02:11.7]} 18. Bxg6+
{[%clk 0:02:13.5]} 18... fxg6 {[%clk 0:01:39.3]} 19. Rxd4 {[%clk 0:02:13.6]}
19... e5 {[%clk 0:01:39.5]} 20. Rxd5 {[%clk 0:01:38.6]} 20... Nxd5 {[%clk
0:01:23.9]} 21. Nxd5 {[%clk 0:01:39.5]} 21... Qc6 {[%clk 0:01:16.8]} 22. Rd1
{[%clk 0:01:22.7]} 22... exf4 {[%clk 0:01:11.8]} 23. Qe7+ {[%clk 0:01:23.3]}
23... Kg8 {[%clk 0:00:48.9]} 24. Qe4 {[%clk 0:01:17.2]} 24... Kh8 {[%clk
0:00:40.8]} 25. Qd4+ {[%clk 0:01:12.6]} 25... Kh7 {[%clk 0:00:41]} 26. h5 {[%clk
0:01:12.8]} 26... Rac8 {[%clk 0:00:36.3]} 27. hxg6+ {[%clk 0:01:12.1]} 27...
Qxg6 {[%clk 0:00:36.4]} 28. c3 {[%clk 0:01:12.2]} 28... Nc5 {[%clk 0:00:32.8]}
29. Ne7 {[%clk 0:01:10.1]} 29... Qg7 {[%clk 0:00:30.1]} 30. Nxc8 {[%clk
0:01:08.5]} 30... Rxc8 {[%clk 0:00:28.1]} 31. Qd5 {[%clk 0:01:08.3]} 31... Rc7
{[%clk 0:00:18.9]} 32. Qf5+ {[%clk 0:01:06.2]} 32... Qg6 {[%clk 0:00:19]} 33.
Qxf4 {[%clk 0:01:06.9]} 33... Ne6 {[%clk 0:00:17.9]} 34. Qd6 {[%clk 0:01:02.2]}
34... Qxg4 {[%clk 0:00:13]} 35. Kb1 {[%clk 0:00:56.7]} 35... Qg6+ {[%clk
0:00:12.6]} 36. Ka1 {[%clk 0:00:56.8]} 36... Rf7 {[%clk 0:00:13.1]} 37. Qxa6
{[%clk 0:00:55.5]} 37... h5 {[%clk 0:00:13.1]} 38. a4 {[%clk 0:00:55.3]} 38...
h4 {[%clk 0:00:13.3]} 39. Qc4 {[%clk 0:00:55.5]} 39... h3 {[%clk 0:00:12.6]} 40.
Rh1 {[%clk 0:00:54.8]} 40... Nf4 {[%clk 0:00:12.5]} 41. a5 {[%clk 0:00:51.4]}
41... Rf5 {[%clk 0:00:10]} 42. b4 {[%clk 0:00:50.4]} 42... Kh6 {[%clk
0:00:09.8]} 43. a6 {[%clk 0:00:50.2]} 43... Qg2 {[%clk 0:00:10]} 44. Re1 {[%clk
0:00:42.4]} 44... h2 {[%clk 0:00:10]} 45. Qc8 {[%clk 0:00:43]} 45... Kg5 {[%clk
0:00:09.3]} 46. Qg8+ {[%clk 0:00:42.4]} 46... Ng6 {[%clk 0:00:09.5]} 47. Qd8+
{[%clk 0:00:42.3]} 47... Kh5 {[%clk 0:00:09.8]} 48. Qd1+ {[%clk 0:00:42]} 48...
Kh4 {[%clk 0:00:05.8]} 49. a7 {[%clk 0:00:42]} 49... Qa8 {[%clk 0:00:04.4]} 50.
Qd4+ {[%clk 0:00:40]} 50... Kg5 {[%clk 0:00:04.9]} 51. f4+ {[%clk 0:00:39.5]}
51... Kg4 {[%clk 0:00:04.7]} 52. Qd1+ {[%clk 0:00:39.1]} 52... Kg3 {[%clk
0:00:05.2]} 53. Qd3+ {[%clk 0:00:36.8]} 53... Kg4 {[%clk 0:00:05.3]} 54. Qe2+
{[%clk 0:00:37.3]} 54... Kg3 {[%clk 0:00:05.3]} 55. Qe3+ {[%clk 0:00:37.6]}
55... Kg4 {[%clk 0:00:05.4]} 56. Kb2 {[%clk 0:00:36]} 56... Nh4 {[%clk
0:00:05.6]} 57. Qe2+ {[%clk 0:00:31.8]} 57... Nf3 {[%clk 0:00:05]} 58. Qg2+
{[%clk 0:00:28.1]} 58... Kxf4 {[%clk 0:00:05.6]} 59. Rf1 {[%clk 0:00:28.3]}
59... Ke3 {[%clk 0:00:04]} 60. Qf2+ {[%clk 0:00:28.3]} 60... Ke4 {[%clk
0:00:04]} 61. Qe2+ {[%clk 0:00:28.7]} 61... Kd5 {[%clk 0:00:04.2]} 62. Rxf3
{[%clk 0:00:28.3]} 62... h1=Q {[%clk 0:00:04.7]} 63. Rxf5+ {[%clk 0:00:28.5]}
63... Kd6 {[%clk 0:00:05.1]} 64. Qe5+ {[%clk 0:00:28.7]} 64... Kc6 {[%clk
0:00:04.8]} 65. Rf6+ {[%clk 0:00:29.1]} 65... Kb7 {[%clk 0:00:05.1]} 66. Qe7+
{[%clk 0:00:29.1]} 1-0

[Event "*** SCC Grand Prix: Titled Tuesday Blitz"]
[Site "Chess.com"]
[Date "2020.07.21"]
[Round "3"]
[White "Richarzard69"]
[Black "albano87"]
[Result "1-0"]
[WhiteElo "2211"]
[BlackElo "2393"]
[TimeControl "180+1"]
[EndTime "10:29:08 PDT"]
[Termination "Richarzard69 won by resignation"]

1. Nf3 {[%clk 0:03:00.9]} 1... d5 {[%clk 0:02:59]} 2. c4 {[%clk 0:03:00.6]} 2...
e6 {[%clk 0:02:58.8]} 3. d4 {[%clk 0:03:00.1]} 3... Nf6 {[%clk 0:02:57.2]} 4. g3
{[%clk 0:03:00.4]} 4... Be7 {[%clk 0:02:56.6]} 5. Bg2 {[%clk 0:03:00.7]} 5...
O-O {[%clk 0:02:55.1]} 6. O-O {[%clk 0:03:01.6]} 6... dxc4 {[%clk 0:02:53.7]} 7.
Qc2 {[%clk 0:03:01.9]} 7... a6 {[%clk 0:02:51.1]} 8. Qxc4 {[%clk 0:03:01.7]}
8... b5 {[%clk 0:02:47]} 9. Qc2 {[%clk 0:03:01.7]} 9... Bb7 {[%clk 0:02:45.8]}
10. Bd2 {[%clk 0:03:02.3]} 10... Nbd7 {[%clk 0:02:45.1]} 11. Ba5 {[%clk
0:03:01.8]} 11... Qc8 {[%clk 0:02:42]} 12. Qxc7 {[%clk 0:02:50.6]} 12... Qxc7
{[%clk 0:02:41]} 13. Bxc7 {[%clk 0:02:50.9]} 13... Rac8 {[%clk 0:02:41.2]} 14.
Ba5 {[%clk 0:02:17.1]} 14... Rc2 {[%clk 0:02:36.1]} 15. Bc3 {[%clk 0:02:12.1]}
15... Rxe2 {[%clk 0:02:34.1]} 16. a3 {[%clk 0:02:06.2]} 16... Nd5 {[%clk
0:02:28.8]} 17. Nfd2 {[%clk 0:01:52.5]} 17... N7b6 {[%clk 0:02:14.8]} 18. Rd1
{[%clk 0:01:29.7]} 18... Ba8 {[%clk 0:02:04.1]} 19. Bf1 {[%clk 0:01:24.7]} 19...
Nxc3 {[%clk 0:01:55.4]} 20. Nxc3 {[%clk 0:01:25.6]} 20... Rxd2 {[%clk 0:01:39]}
21. Rxd2 {[%clk 0:01:26.5]} 21... Rd8 {[%clk 0:01:37.7]} 22. Rad1 {[%clk
0:01:22.9]} 22... Kf8 {[%clk 0:01:34.7]} 23. Be2 {[%clk 0:01:07.6]} 23... Bg5
{[%clk 0:01:34]} 24. f4 {[%clk 0:01:06.5]} 24... Bf6 {[%clk 0:01:34.5]} 25. Kf2
{[%clk 0:01:03]} 25... Ke7 {[%clk 0:01:34.6]} 26. b3 {[%clk 0:00:52.2]} 26...
Rc8 {[%clk 0:01:33.1]} 27. Rc1 {[%clk 0:00:31]} 27... h5 {[%clk 0:01:33]} 28.
Bf3 {[%clk 0:00:26.9]} 28... Rd8 {[%clk 0:01:28.5]} 29. Bxa8 {[%clk 0:00:26]}
29... Nxa8 {[%clk 0:01:22.8]} 30. Ke3 {[%clk 0:00:24]} 30... Nb6 {[%clk
0:01:22.4]} 31. Ne2 {[%clk 0:00:18.8]} 31... g5 {[%clk 0:01:19.9]} 32. Rc7+
{[%clk 0:00:14.7]} 32... Ke8 {[%clk 0:01:20.4]} 33. Rc6 {[%clk 0:00:13.5]} 33...
Nd5+ {[%clk 0:01:16.9]} 34. Kf3 {[%clk 0:00:14.1]} 34... g4+ {[%clk 0:01:17.1]}
35. Kf2 {[%clk 0:00:13.2]} 35... a5 {[%clk 0:01:18]} 36. Rdc2 {[%clk 0:00:10.1]}
36... Kd7 {[%clk 0:01:17]} 37. Ra6 {[%clk 0:00:09.1]} 37... h4 {[%clk
0:01:17.9]} 38. Rxa5 {[%clk 0:00:08.8]} 38... hxg3+ {[%clk 0:01:17.7]} 39. hxg3
{[%clk 0:00:09.7]} 39... Rh8 {[%clk 0:01:18.5]} 40. Kg1 {[%clk 0:00:07.8]} 40...
Ne3 {[%clk 0:01:16.1]} 41. Rc5 {[%clk 0:00:06.2]} 41... Nf5 {[%clk 0:01:17]} 42.
Rcxb5 {[%clk 0:00:06.1]} 42... Nxd4 {[%clk 0:01:16.1]} 43. Nxd4 {[%clk
0:00:05.6]} 43... Bxd4+ {[%clk 0:01:16.3]} 44. Kg2 {[%clk 0:00:06.5]} 44... Rc8
{[%clk 0:01:10.9]} 45. Rb7+ {[%clk 0:00:06.1]} 45... Ke8 {[%clk 0:01:11.7]} 46.
b4 {[%clk 0:00:05.3]} 46... Rc2+ {[%clk 0:01:12.2]} 47. Kf1 {[%clk 0:00:05.5]}
47... Rc3 {[%clk 0:01:08.1]} 48. Rh5 {[%clk 0:00:05.4]} 48... Rxg3 {[%clk
0:01:07.2]} 49. a4 {[%clk 0:00:04.1]} 49... Rf3+ {[%clk 0:01:07.1]} 50. Ke2
{[%clk 0:00:04.2]} 50... Rxf4 {[%clk 0:01:07.1]} 51. a5 {[%clk 0:00:05.1]} 51...
g3 {[%clk 0:01:06.6]} 52. Rg5 {[%clk 0:00:04.6]} 52... Kf8 {[%clk 0:00:56.4]}
53. Rxg3 {[%clk 0:00:04.7]} 53... Rf2+ {[%clk 0:00:57.2]} 54. Kd3 {[%clk
0:00:05.1]} 54... e5 {[%clk 0:00:58]} 55. Rh3 {[%clk 0:00:04.5]} 55... Kg7
{[%clk 0:00:55.3]} 56. a6 {[%clk 0:00:04.8]} 56... Ra2 {[%clk 0:00:55]} 57. b5
{[%clk 0:00:05.3]} 57... Ra3+ {[%clk 0:00:55.2]} 58. Ke4 {[%clk 0:00:04.5]}
58... Rxh3 {[%clk 0:00:56.1]} 59. a7 {[%clk 0:00:04.9]} 59... Ra3 {[%clk
0:00:55.6]} 60. b6 {[%clk 0:00:04.9]} 60... Bxb6 {[%clk 0:00:56]} 61. Rxb6
{[%clk 0:00:04.5]} 61... Rxa7 {[%clk 0:00:55.1]} 62. Kxe5 {[%clk 0:00:05.4]}
62... f6+ {[%clk 0:00:54.6]} 63. Kf4 {[%clk 0:00:05.9]} 63... Kg6 {[%clk
0:00:54.4]} 64. Rb4 {[%clk 0:00:06]} 64... Ra5 {[%clk 0:00:54.5]} 65. Kg3 {[%clk
0:00:06.2]} 65... Kg5 {[%clk 0:00:54.7]} 66. Kf2 {[%clk 0:00:06]} 66... Kf5
{[%clk 0:00:53.7]} 67. Rb2 {[%clk 0:00:05.1]} 67... Kg4 {[%clk 0:00:53.4]} 68.
Rc2 {[%clk 0:00:05.4]} 68... f5 {[%clk 0:00:53.8]} 69. Rb2 {[%clk 0:00:04.4]}
69... f4 {[%clk 0:00:50.6]} 70. Rb3 {[%clk 0:00:04.7]} 70... Rb5 {[%clk
0:00:50.3]} 71. Rxb5 {[%clk 0:00:03.8]} 1-0

[Event "*** SCC Grand Prix: Titled Tuesday Blitz"]
[Site "Chess.com"]
[Date "2020.07.21"]
[Round "3"]
[White "Sam_ChessMood"]
[Black "RubensCezila"]
[Result "1/2-1/2"]
[WhiteElo "2812"]
[BlackElo "2566"]
[TimeControl "180+1"]
[EndTime "10:29:09 PDT"]
[Termination "Game drawn by repetition"]

1. e4 {[%clk 0:03:00.9]} 1... c6 {[%clk 0:02:59.4]} 2. d4 {[%clk 0:02:54.8]}
2... d5 {[%clk 0:02:59.3]} 3. e5 {[%clk 0:02:55.3]} 3... Bf5 {[%clk 0:02:59.4]}
4. Nf3 {[%clk 0:02:54.8]} 4... e6 {[%clk 0:02:59.1]} 5. Be2 {[%clk 0:02:54.8]}
5... Nd7 {[%clk 0:02:58.7]} 6. O-O {[%clk 0:02:54.2]} 6... Bg6 {[%clk
0:02:57.1]} 7. c3 {[%clk 0:02:52.8]} 7... Nh6 {[%clk 0:02:57.2]} 8. a4 {[%clk
0:02:51.1]} 8... Rc8 {[%clk 0:02:53]} 9. a5 {[%clk 0:02:49.8]} 9... a6 {[%clk
0:02:53.3]} 10. b4 {[%clk 0:02:49.5]} 10... Nf5 {[%clk 0:02:41.5]} 11. Nbd2
{[%clk 0:02:36]} 11... Be7 {[%clk 0:02:34.4]} 12. Nb3 {[%clk 0:02:34.3]} 12...
h5 {[%clk 0:02:28.9]} 13. Nc5 {[%clk 0:02:32.1]} 13... Rc7 {[%clk 0:02:21.1]}
14. Bd3 {[%clk 0:02:24.3]} 14... h4 {[%clk 0:02:19.6]} 15. h3 {[%clk 0:02:24.4]}
15... Nf8 {[%clk 0:02:11.1]} 16. Nh2 {[%clk 0:02:19.5]} 16... Nh7 {[%clk
0:02:05]} 17. Ng4 {[%clk 0:02:19.5]} 17... Ng5 {[%clk 0:02:00.9]} 18. Ra2 {[%clk
0:02:10.6]} 18... Bh5 {[%clk 0:01:45.7]} 19. Qc2 {[%clk 0:02:04]} 19... g6
{[%clk 0:01:36]} 20. Be2 {[%clk 0:01:46]} 20... Kf8 {[%clk 0:01:23.8]} 21. f4
{[%clk 0:01:22.3]} 21... Bxc5 {[%clk 0:01:07.7]} 22. fxg5 {[%clk 0:01:09.1]}
22... Be7 {[%clk 0:01:06.1]} 23. Nf6 {[%clk 0:01:09.4]} 23... Bxe2 {[%clk
0:01:04.5]} 24. Qxe2 {[%clk 0:01:08.7]} 24... Ng3 {[%clk 0:01:04.8]} 25. Qf3
{[%clk 0:01:04.1]} 25... Nxf1 {[%clk 0:01:03.6]} 26. Qxf1 {[%clk 0:01:05]} 26...
Bxf6 {[%clk 0:01:02]} 27. exf6 {[%clk 0:01:02.4]} 27... Ke8 {[%clk 0:00:53]} 28.
Bf4 {[%clk 0:01:01.6]} 28... Rc8 {[%clk 0:00:53.2]} 29. Qe2 {[%clk 0:00:58.1]}
29... Kd7 {[%clk 0:00:52.8]} 30. Qe5 {[%clk 0:00:56.3]} 30... Ke8 {[%clk
0:00:24.6]} 31. Re2 {[%clk 0:00:54.2]} 31... Qd7 {[%clk 0:00:20.9]} 32. Qe3
{[%clk 0:00:51.2]} 32... Rh5 {[%clk 0:00:20.5]} 33. Qf3 {[%clk 0:00:49.1]} 33...
Kf8 {[%clk 0:00:17.6]} 34. Re5 {[%clk 0:00:48.3]} 34... Kg8 {[%clk 0:00:17.4]}
35. Qg4 {[%clk 0:00:40.1]} 35... Re8 {[%clk 0:00:16.3]} 36. Bd2 {[%clk
0:00:38.9]} 36... Qd8 {[%clk 0:00:15.3]} 37. Be1 {[%clk 0:00:38]} 37... b6
{[%clk 0:00:15.3]} 38. axb6 {[%clk 0:00:37.6]} 38... Qxb6 {[%clk 0:00:16.1]} 39.
Bxh4 {[%clk 0:00:37.4]} 39... a5 {[%clk 0:00:16.6]} 40. bxa5 {[%clk 0:00:36.4]}
40... Qxa5 {[%clk 0:00:16.8]} 41. Be1 {[%clk 0:00:35.9]} 41... c5 {[%clk
0:00:13.4]} 42. h4 {[%clk 0:00:34.1]} 42... cxd4 {[%clk 0:00:12.3]} 43. cxd4
{[%clk 0:00:34.3]} 43... Qb6 {[%clk 0:00:12.9]} 44. Kh2 {[%clk 0:00:29.5]} 44...
Rc8 {[%clk 0:00:13.1]} 45. Qf4 {[%clk 0:00:23.1]} 45... Rc4 {[%clk 0:00:12.3]}
46. Bf2 {[%clk 0:00:23.3]} 46... Qc7 {[%clk 0:00:11.6]} 47. Qf3 {[%clk
0:00:10.4]} 47... Rc3 {[%clk 0:00:10.8]} 48. Qf4 {[%clk 0:00:09.9]} 48... Rc4
{[%clk 0:00:10.8]} 49. Qd2 {[%clk 0:00:09.1]} 49... Rc2 {[%clk 0:00:10.7]} 50.
Qe1 {[%clk 0:00:08.6]} 50... Rc1 {[%clk 0:00:10.2]} 51. Qb4 {[%clk 0:00:08.6]}
51... Rc2 {[%clk 0:00:10]} 52. Qe7 {[%clk 0:00:07.2]} 52... Qxe7 {[%clk
0:00:08.9]} 53. fxe7 {[%clk 0:00:07.6]} 53... Rc8 {[%clk 0:00:09.5]} 54. Re1
{[%clk 0:00:04.3]} 54... Re8 {[%clk 0:00:09.3]} 55. g4 {[%clk 0:00:03.2]} 55...
Rh8 {[%clk 0:00:08.2]} 56. Bg3 {[%clk 0:00:03]} 56... Rxe7 {[%clk 0:00:08.6]}
57. Be5 {[%clk 0:00:03.3]} 57... Rxh4+ {[%clk 0:00:08.7]} 58. Kg3 {[%clk
0:00:03.8]} 58... Rh7 {[%clk 0:00:07.3]} 59. Ra1 {[%clk 0:00:03.5]} 59... Re8
{[%clk 0:00:07.4]} 60. Bf6 {[%clk 0:00:04.1]} 60... Rc8 {[%clk 0:00:07.7]} 61.
Rb1 {[%clk 0:00:03.6]} 61... Kf8 {[%clk 0:00:07.4]} 62. Ra1 {[%clk 0:00:03.5]}
62... Ke8 {[%clk 0:00:07.6]} 63. Rb1 {[%clk 0:00:03.8]} 63... Kf8 {[%clk
0:00:08.1]} 64. Ra1 {[%clk 0:00:04.3]} 64... Kg8 {[%clk 0:00:08.5]} 65. Rb1
{[%clk 0:00:04.7]} 65... Kf8 {[%clk 0:00:08.8]} 1/2-1/2

[Event "*** SCC Grand Prix: Titled Tuesday Blitz"]
[Site "Chess.com"]
[Date "2020.07.21"]
[Round "3"]
[White "Dauletova"]
[Black "Yashasd1995"]
[Result "1/2-1/2"]
[WhiteElo "2319"]
[BlackElo "2547"]
[TimeControl "180+1"]
[EndTime "10:29:12 PDT"]
[Termination "Game drawn by repetition"]

1. e4 {[%clk 0:03:00.9]} 1... d5 {[%clk 0:02:57]} 2. exd5 {[%clk 0:03:00.5]}
2... Nf6 {[%clk 0:02:56.3]} 3. d4 {[%clk 0:02:58.2]} 3... Bg4 {[%clk 0:02:55.4]}
4. Be2 {[%clk 0:02:57.2]} 4... Bxe2 {[%clk 0:02:55.2]} 5. Nxe2 {[%clk
0:02:58.1]} 5... Qxd5 {[%clk 0:02:44.3]} 6. O-O {[%clk 0:02:58]} 6... Nc6 {[%clk
0:02:43.3]} 7. b3 {[%clk 0:02:50.7]} 7... O-O-O {[%clk 0:02:35.4]} 8. c4 {[%clk
0:02:50.4]} 8... Qf5 {[%clk 0:02:35.5]} 9. Nbc3 {[%clk 0:02:44]} 9... e6 {[%clk
0:02:34.9]} 10. Be3 {[%clk 0:02:03.2]} 10... h5 {[%clk 0:02:32.7]} 11. Qb1
{[%clk 0:01:45.9]} 11... Qa5 {[%clk 0:02:10.4]} 12. Rd1 {[%clk 0:01:39.8]} 12...
h4 {[%clk 0:02:07.3]} 13. h3 {[%clk 0:01:37.7]} 13... Bb4 {[%clk 0:01:37.3]} 14.
Nb5 {[%clk 0:01:24.3]} 14... Be7 {[%clk 0:01:18.5]} 15. a3 {[%clk 0:01:23.4]}
15... Rh5 {[%clk 0:01:11.8]} 16. b4 {[%clk 0:01:22.8]} 16... Qa6 {[%clk
0:01:11.9]} 17. Nec3 {[%clk 0:01:08.8]} 17... b6 {[%clk 0:00:49.7]} 18. Bf4
{[%clk 0:00:54.6]} 18... Rd7 {[%clk 0:00:42]} 19. Nxc7 {[%clk 0:00:42.6]} 19...
Qxc4 {[%clk 0:00:41.9]} 20. N7b5 {[%clk 0:00:29.9]} 20... Kb7 {[%clk 0:00:38.2]}
21. Rc1 {[%clk 0:00:28.9]} 21... Rxb5 {[%clk 0:00:36.8]} 22. Nxb5 {[%clk
0:00:25.3]} 22... Qxb5 {[%clk 0:00:37.7]} 23. Qc2 {[%clk 0:00:25]} 23... Qd5
{[%clk 0:00:16.8]} 24. a4 {[%clk 0:00:20.9]} 24... a6 {[%clk 0:00:11.3]} 25. b5
{[%clk 0:00:21]} 25... axb5 {[%clk 0:00:11.2]} 26. axb5 {[%clk 0:00:21.9]} 26...
Qxb5 {[%clk 0:00:11.6]} 27. Qa2 {[%clk 0:00:20.4]} 27... Na5 {[%clk 0:00:11.5]}
28. Qc2 {[%clk 0:00:20]} 28... Ka7 {[%clk 0:00:10.8]} 29. Qc8 {[%clk 0:00:19.2]}
29... Rb7 {[%clk 0:00:11.1]} 30. Rc7 {[%clk 0:00:17.3]} 30... Qa6 {[%clk
0:00:09.8]} 31. Rxb7+ {[%clk 0:00:16.9]} 31... Qxb7 {[%clk 0:00:10.7]} 32. Qxb7+
{[%clk 0:00:16.9]} 32... Kxb7 {[%clk 0:00:11.6]} 33. Be5 {[%clk 0:00:16.9]}
33... Ne8 {[%clk 0:00:11.2]} 34. Rd1 {[%clk 0:00:15.3]} 34... Nc6 {[%clk
0:00:11.5]} 35. Bf4 {[%clk 0:00:15.1]} 35... g5 {[%clk 0:00:11.4]} 36. Be3
{[%clk 0:00:14.9]} 36... Nf6 {[%clk 0:00:11.9]} 37. Bd2 {[%clk 0:00:14.2]} 37...
Nd5 {[%clk 0:00:12.8]} 38. Be3 {[%clk 0:00:13.5]} 38... Nxe3 {[%clk 0:00:12.5]}
39. fxe3 {[%clk 0:00:13.6]} 39... b5 {[%clk 0:00:13.4]} 40. e4 {[%clk
0:00:13.9]} 40... Nxd4 {[%clk 0:00:12.7]} 41. Kf2 {[%clk 0:00:12]} 41... Bc5
{[%clk 0:00:12.9]} 42. Ke1 {[%clk 0:00:12.3]} 42... b4 {[%clk 0:00:12.9]} 43.
Kd2 {[%clk 0:00:12.2]} 43... Kb6 {[%clk 0:00:13.4]} 44. Kd3 {[%clk 0:00:12.6]}
44... Kb5 {[%clk 0:00:13.9]} 45. Ra1 {[%clk 0:00:11.7]} 45... Nc6 {[%clk
0:00:13.1]} 46. Ra8 {[%clk 0:00:11.1]} 46... b3 {[%clk 0:00:13.3]} 47. Kc3
{[%clk 0:00:11.1]} 47... Bd4+ {[%clk 0:00:10.5]} 48. Kxb3 {[%clk 0:00:11.1]}
48... f6 {[%clk 0:00:10.9]} 49. Kc2 {[%clk 0:00:11.2]} 49... Kc5 {[%clk
0:00:11.8]} 50. Kd3 {[%clk 0:00:11.4]} 50... Kd6 {[%clk 0:00:12.4]} 51. Ra6
{[%clk 0:00:11.6]} 51... Bc5 {[%clk 0:00:12.6]} 52. Kc4 {[%clk 0:00:11.2]} 52...
Bf2 {[%clk 0:00:11.9]} 53. Kb5 {[%clk 0:00:11.3]} 53... Ke5 {[%clk 0:00:12.8]}
54. Rxc6 {[%clk 0:00:11.4]} 54... Kxe4 {[%clk 0:00:13.6]} 55. Rxe6+ {[%clk
0:00:11.6]} 55... Kf5 {[%clk 0:00:14.5]} 56. Rc6 {[%clk 0:00:11.1]} 56... Bg3
{[%clk 0:00:15.4]} 57. Kc4 {[%clk 0:00:11.2]} 57... Be5 {[%clk 0:00:16.3]} 58.
Kd3 {[%clk 0:00:11.6]} 58... Kf4 {[%clk 0:00:17.2]} 59. Ke2 {[%clk 0:00:12.1]}
59... Kg3 {[%clk 0:00:18.1]} 60. Kf1 {[%clk 0:00:12.5]} 60... g4 {[%clk
0:00:18.5]} 61. hxg4 {[%clk 0:00:12]} 61... Kxg4 {[%clk 0:00:19.4]} 62. Rc4+
{[%clk 0:00:11.6]} 62... Kg3 {[%clk 0:00:19.4]} 63. Ra4 {[%clk 0:00:11.8]} 63...
f5 {[%clk 0:00:19.5]} 64. Ra3+ {[%clk 0:00:11.6]} 64... Kf4 {[%clk 0:00:19.9]}
65. Rf3+ {[%clk 0:00:12.2]} 65... Kg4 {[%clk 0:00:19.9]} 66. Ke2 {[%clk
0:00:12.4]} 66... Bg3 {[%clk 0:00:20.4]} 67. Re3 {[%clk 0:00:11.8]} 67... f4
{[%clk 0:00:20.4]} 68. Rf3 {[%clk 0:00:12.2]} 68... h3 {[%clk 0:00:20.2]} 69.
gxh3+ {[%clk 0:00:12.5]} 69... Kxh3 {[%clk 0:00:21.1]} 70. Kd3 {[%clk
0:00:12.5]} 70... Kg4 {[%clk 0:00:21.4]} 71. Ke4 {[%clk 0:00:13.2]} 71... Bh2
{[%clk 0:00:21.9]} 72. Rf1 {[%clk 0:00:13.3]} 72... Bg3 {[%clk 0:00:22.8]} 73.
Rf3 {[%clk 0:00:13.4]} 73... Bh2 {[%clk 0:00:23.1]} 74. Rf1 {[%clk 0:00:13.3]}
74... Bg3 {[%clk 0:00:24]} 75. Rf3 {[%clk 0:00:12.9]} 1/2-1/2